[Event "Titled Tuesday Blitz March 22 Early 2022"]
[White "Rosenberg, Evan S"]
[Black "Tanenbaum, Zachary"]
[WhiteFideId "2019299"]
[BlackFideId "2060850"]
[WhiteElo "2291"]
[BlackElo "2168"]
[Result "0-1"]
[Round "06"]
[TimeControl "180+1"]
[Date "2022.03.22"]
[WhiteClock "0:00:15"]
[BlackClock "0:00:11"]

1. d4 {[%clk 0:03:00]}  d5 {[%clk 0:03:00]} 2. c4 {[%clk 0:03:00]}  Bf5 {[%clk 0:03:00]} 3. cxd5 {[%clk 0:02:52]}  Bxb1 {[%clk 0:03:00]} 4. Qa4+ {[%clk 0:02:48]}  c6 {[%clk 0:03:00]} 5. Rxb1 {[%clk 0:02:48]}  Qxd5 {[%clk 0:02:59]} 6. Nf3 {[%clk 0:02:39]}  Nd7 {[%clk 0:03:00]} 7. a3 {[%clk 0:02:30]}  Ngf6 {[%clk 0:02:59]} 8. e3 {[%clk 0:02:21]}  e6 {[%clk 0:02:59]} 9. Bd3 {[%clk 0:02:18]}  Nc5 {[%clk 0:02:59]} 10. Qc2 {[%clk 0:02:11]}  Nxd3+ {[%clk 0:02:59]} 11. Qxd3 {[%clk 0:02:12]}  Bd6 {[%clk 0:02:59]} 12. h3 {[%clk 0:02:11]}  O-O {[%clk 0:02:58]} 13. O-O {[%clk 0:02:10]}  e5 {[%clk 0:02:58]} 14. Qf5 {[%clk 0:02:03]}  e4 {[%clk 0:02:49]} 15. Qxd5 {[%clk 0:02:01]}  cxd5 {[%clk 0:02:50]} 16. Nd2 {[%clk 0:01:56]}  Rac8 {[%clk 0:02:48]} 17. f3 {[%clk 0:01:55]}  Rc2 {[%clk 0:02:43]} 18. fxe4 {[%clk 0:01:56]}  Nxe4 {[%clk 0:02:23]} 19. Nxe4 {[%clk 0:01:54]}  dxe4 {[%clk 0:02:24]} 20. b4 {[%clk 0:01:38]}  Bg3 {[%clk 0:02:01]} 21. Rb2 {[%clk 0:01:11]}  Rfc8 {[%clk 0:01:34]} 22. Rxc2 {[%clk 0:01:11]}  Rxc2 {[%clk 0:01:34]} 23. Rd1 {[%clk 0:01:10]}  Kf8 {[%clk 0:01:17]} 24. Bd2 {[%clk 0:01:04]}  b5 {[%clk 0:01:13]} 25. Kf1 {[%clk 0:00:55]}  Ra2 {[%clk 0:01:04]} 26. Ke2 {[%clk 0:00:55]}  Rxa3 {[%clk 0:01:00]} 27. Rc1 {[%clk 0:00:56]}  Ke7 {[%clk 0:00:49]} 28. Rc5 {[%clk 0:00:53]}  a6 {[%clk 0:00:48]} 29. Rg5 {[%clk 0:00:53]}  Bd6 {[%clk 0:00:45]} 30. Rxg7 {[%clk 0:00:50]}  Ra2 {[%clk 0:00:42]} 31. Kd1 {[%clk 0:00:49]}  Rb2 {[%clk 0:00:40]} 32. Kc1 {[%clk 0:00:44]}  Ra2 {[%clk 0:00:38]} 33. Rxh7 {[%clk 0:00:42]}  Ra1+ {[%clk 0:00:33]} 34. Kb2 {[%clk 0:00:40]}  Rg1 {[%clk 0:00:34]} 35. g4 {[%clk 0:00:36]}  Rg2 {[%clk 0:00:33]} 36. Kc1 {[%clk 0:00:34]}  Ke6 {[%clk 0:00:26]} 37. Rh8 {[%clk 0:00:26]}  Bg3 {[%clk 0:00:16]} 38. Rh6+ {[%clk 0:00:23]}  Kd5 {[%clk 0:00:16]} 39. Rxa6 {[%clk 0:00:23]}  Kc4 {[%clk 0:00:15]} 40. Ra3 {[%clk 0:00:19]}  Rh2 {[%clk 0:00:12]} 41. Rc3+ {[%clk 0:00:19]}  Kxb4 {[%clk 0:00:11]} 42. Rc2+ {[%clk 0:00:17]}  Kb3 {[%clk 0:00:10]} 43. Rb2+ {[%clk 0:00:14]}  Kc4 {[%clk 0:00:09]} 44. Rc2+ {[%clk 0:00:13]}  Kd3 {[%clk 0:00:09]} 45. Rc3+ {[%clk 0:00:11]}  Ke2 {[%clk 0:00:09]} 46. Rc2 {[%clk 0:00:11]}  Kf3 {[%clk 0:00:08]} 47. Bb4 {[%clk 0:00:09]}  Rxh3 {[%clk 0:00:05]} 48. g5 {[%clk 0:00:07]}  Kxe3 {[%clk 0:00:04]} 49. Bd2+ {[%clk 0:00:07]}  Kxd4 {[%clk 0:00:04]} 50. Bc3+ {[%clk 0:00:07]}  Kd5 {[%clk 0:00:04]} 51. Rd2+ {[%clk 0:00:07]}  Ke6 {[%clk 0:00:04]} 52. Bb4 {[%clk 0:00:06]}  Bf4 {[%clk 0:00:04]} 53. Kd1 {[%clk 0:00:06]}  Bxd2 {[%clk 0:00:04]} 54. Bxd2 {[%clk 0:00:07]}  Kf5 {[%clk 0:00:05]} 55. g6 {[%clk 0:00:08]}  fxg6 {[%clk 0:00:05]} 56. Kc2 {[%clk 0:00:09]}  g5 {[%clk 0:00:05]} 57. Bc3 {[%clk 0:00:09]}  g4 {[%clk 0:00:06]} 58. Kb3 {[%clk 0:00:10]}  g3 {[%clk 0:00:06]} 59. Kb4 {[%clk 0:00:11]}  g2 {[%clk 0:00:07]} 60. Kxb5 {[%clk 0:00:12]}  Rxc3 {[%clk 0:00:07]} 61. Kb4 {[%clk 0:00:12]}  Rd3 {[%clk 0:00:08]} 62. Kc4 {[%clk 0:00:13]}  g1=Q {[%clk 0:00:09]} 63. Kb5 {[%clk 0:00:13]}  Qf2 {[%clk 0:00:10]} 64. Ka6 {[%clk 0:00:14]}  Qc2 {[%clk 0:00:10]} 65. Ka5 {[%clk 0:00:15]}  Rb3 {[%clk 0:00:10]} 66. Ka4 {[%clk 0:00:15]}  Qa2# {[%clk 0:00:11]} 0-1


[Site "https://www.chess.com"]

[Event "Titled Tuesday Blitz March 22 Early 2022"]
[White "Ruge, Edison"]
[Black "Rastbod, Ali"]
[WhiteFideId "4401000"]
[BlackFideId "12567477"]
[WhiteElo "2175"]
[BlackElo "2200"]
[Result "0-1"]
[Round "06"]
[TimeControl "180+1"]
[Date "2022.03.22"]
[WhiteClock "0:00:02"]
[BlackClock "0:00:12"]

1. e4 {[%clk 0:03:00]}  e6 {[%clk 0:03:00]} 2. d3 {[%clk 0:02:59]}  d5 {[%clk 0:03:01]} 3. Nd2 {[%clk 0:03:00]}  Nf6 {[%clk 0:03:01]} 4. Ngf3 {[%clk 0:03:00]}  Nc6 {[%clk 0:03:01]} 5. e5 {[%clk 0:02:52]}  Nd7 {[%clk 0:03:01]} 6. d4 {[%clk 0:02:52]}  f6 {[%clk 0:03:02]} 7. Bb5 {[%clk 0:02:51]}  a6 {[%clk 0:02:58]} 8. Bxc6 {[%clk 0:02:51]}  bxc6 {[%clk 0:02:59]} 9. exf6 {[%clk 0:02:50]}  Qxf6 {[%clk 0:02:58]} 10. O-O {[%clk 0:02:50]}  Bd6 {[%clk 0:02:59]} 11. Qe2 {[%clk 0:02:44]}  O-O {[%clk 0:02:59]} 12. Re1 {[%clk 0:02:38]}  Nb6 {[%clk 0:02:16]} 13. Nf1 {[%clk 0:02:31]}  c5 {[%clk 0:02:12]} 14. c3 {[%clk 0:02:29]}  cxd4 {[%clk 0:02:09]} 15. cxd4 {[%clk 0:02:29]}  c5 {[%clk 0:02:08]} 16. Be3 {[%clk 0:01:59]}  c4 {[%clk 0:01:57]} 17. Bg5 {[%clk 0:01:55]}  Qf7 {[%clk 0:01:53]} 18. Bh4 {[%clk 0:01:54]}  h6 {[%clk 0:01:46]} 19. Bg3 {[%clk 0:01:54]}  Bxg3 {[%clk 0:01:44]} 20. Nxg3 {[%clk 0:01:53]}  Rb8 {[%clk 0:01:42]} 21. Ne5 {[%clk 0:01:52]}  Qf6 {[%clk 0:01:29]} 22. Nc6 {[%clk 0:01:28]}  Rb7 {[%clk 0:01:27]} 23. Rac1 {[%clk 0:01:17]}  Rc7 {[%clk 0:01:02]} 24. Ne5 {[%clk 0:01:16]}  Re8 {[%clk 0:00:54]} 25. Rc3 {[%clk 0:01:15]}  Bd7 {[%clk 0:00:42]} 26. Nh5 {[%clk 0:01:15]}  Qd8 {[%clk 0:00:37]} 27. Rg3 {[%clk 0:01:12]}  Bb5 {[%clk 0:00:35]} 28. Qe3 {[%clk 0:01:08]}  Kh7 {[%clk 0:00:23]} 29. Rg6 {[%clk 0:00:54]}  Rf8 {[%clk 0:00:17]} 30. Nxg7 {[%clk 0:00:52]}  Qh4 {[%clk 0:00:13]} 31. Nxe6 {[%clk 0:00:47]}  Re8 {[%clk 0:00:08]} 32. Nxc7 {[%clk 0:00:36]}  Rxe5 {[%clk 0:00:08]} 33. Rxh6+ {[%clk 0:00:13]}  Qxh6 {[%clk 0:00:09]} 34. Qxh6+ {[%clk 0:00:13]}  Kxh6 {[%clk 0:00:10]} 35. Rxe5 {[%clk 0:00:12]}  Na4 {[%clk 0:00:10]} 36. Nxb5 {[%clk 0:00:08]}  axb5 {[%clk 0:00:11]} 37. Rxd5 {[%clk 0:00:08]}  b4 {[%clk 0:00:11]} 38. Rd6+ {[%clk 0:00:05]}  Kg5 {[%clk 0:00:12]} 39. Rc6 {[%clk 0:00:05]}  Nxb2 {[%clk 0:00:12]} 40. d5 {[%clk 0:00:05]}  Kf5 {[%clk 0:00:12]} 41. h4 {[%clk 0:00:03]}  c3 {[%clk 0:00:12]} 42. h5 {[%clk 0:00:03]}  Nd3 {[%clk 0:00:12]} 43. h6 {[%clk 0:00:02]}  Ne5 {[%clk 0:00:12]} 0-1


[Site "https://www.chess.com"]

[Event "Titled Tuesday Blitz March 22 Early 2022"]
[White "Sanal, Vahap"]
[Black "Bryakin, Mikhail"]
[WhiteFideId "6300545"]
[BlackFideId "4165314"]
[WhiteElo "2603"]
[BlackElo "2417"]
[Result "1/2-1/2"]
[Round "06"]
[TimeControl "180+1"]
[Date "2022.03.22"]
[WhiteClock "0:00:06"]
[BlackClock "0:00:06"]

1. d4 {[%clk 0:03:00]}  Nf6 {[%clk 0:02:57]} 2. Nf3 {[%clk 0:03:01]}  b6 {[%clk 0:02:53]} 3. Bf4 {[%clk 0:02:58]}  Bb7 {[%clk 0:02:53]} 4. e3 {[%clk 0:02:59]}  d6 {[%clk 0:02:53]} 5. Be2 {[%clk 0:02:58]}  g6 {[%clk 0:02:54]} 6. O-O {[%clk 0:02:58]}  Bg7 {[%clk 0:02:54]} 7. h3 {[%clk 0:02:59]}  O-O {[%clk 0:02:55]} 8. Nbd2 {[%clk 0:02:59]}  Nbd7 {[%clk 0:02:55]} 9. Bh2 {[%clk 0:02:59]}  c5 {[%clk 0:02:55]} 10. c3 {[%clk 0:02:58]}  a6 {[%clk 0:02:52]} 11. a4 {[%clk 0:02:59]}  Bc6 {[%clk 0:02:37]} 12. Re1 {[%clk 0:02:51]}  b5 {[%clk 0:02:36]} 13. axb5 {[%clk 0:02:41]}  axb5 {[%clk 0:02:37]} 14. Bf1 {[%clk 0:02:41]}  Rxa1 {[%clk 0:02:33]} 15. Qxa1 {[%clk 0:02:41]}  Qa8 {[%clk 0:02:31]} 16. Qxa8 {[%clk 0:02:32]}  Rxa8 {[%clk 0:02:30]} 17. e4 {[%clk 0:02:33]}  Ne8 {[%clk 0:02:08]} 18. d5 {[%clk 0:02:31]}  Bb7 {[%clk 0:02:06]} 19. Bxb5 {[%clk 0:02:32]}  Nb6 {[%clk 0:02:05]} 20. Bxe8 {[%clk 0:02:15]}  Rxe8 {[%clk 0:02:06]} 21. Ra1 {[%clk 0:02:15]}  Ra8 {[%clk 0:02:04]} 22. Rxa8+ {[%clk 0:02:15]}  Bxa8 {[%clk 0:02:05]} 23. Kf1 {[%clk 0:01:28]}  Bb7 {[%clk 0:02:02]} 24. Ke1 {[%clk 0:01:28]}  Na4 {[%clk 0:02:00]} 25. Nc4 {[%clk 0:01:28]}  Ba6 {[%clk 0:01:57]} 26. Nfd2 {[%clk 0:01:28]}  Bh6 {[%clk 0:01:56]} 27. f4 {[%clk 0:01:23]}  g5 {[%clk 0:01:48]} 28. g3 {[%clk 0:01:18]}  gxf4 {[%clk 0:01:47]} 29. gxf4 {[%clk 0:01:18]}  f5 {[%clk 0:01:39]} 30. exf5 {[%clk 0:01:10]}  Kf7 {[%clk 0:01:27]} 31. Kd1 {[%clk 0:01:10]}  Bc8 {[%clk 0:01:26]} 32. Kc2 {[%clk 0:01:02]}  Bxf5+ {[%clk 0:01:14]} 33. Kb3 {[%clk 0:01:02]}  Bd7 {[%clk 0:01:15]} 34. Kc2 {[%clk 0:00:57]}  Bg7 {[%clk 0:01:11]} 35. Kb3 {[%clk 0:00:52]}  Kg6 {[%clk 0:01:09]} 36. Nf1 {[%clk 0:00:48]}  Bxh3 {[%clk 0:01:03]} 37. Nfe3 {[%clk 0:00:46]}  Bd7 {[%clk 0:01:04]} 38. Bg3 {[%clk 0:00:46]}  h5 {[%clk 0:00:59]} 39. Bh4 {[%clk 0:00:43]}  Bf6 {[%clk 0:00:40]} 40. f5+ {[%clk 0:00:43]}  Kf7 {[%clk 0:00:34]} 41. Bg3 {[%clk 0:00:42]}  h4 {[%clk 0:00:28]} 42. Bf4 {[%clk 0:00:42]}  h3 {[%clk 0:00:28]} 43. Ng4 {[%clk 0:00:24]}  Bb5 {[%clk 0:00:18]} 44. Nge3 {[%clk 0:00:18]}  Bd7 {[%clk 0:00:17]} 45. Ng4 {[%clk 0:00:17]}  Bb5 {[%clk 0:00:17]} 46. Na3 {[%clk 0:00:10]}  Bd7 {[%clk 0:00:16]} 47. Ne3 {[%clk 0:00:09]}  Nb6 {[%clk 0:00:15]} 48. Kc2 {[%clk 0:00:09]}  Bc8 {[%clk 0:00:10]} 49. Kd3 {[%clk 0:00:09]}  Ba6+ {[%clk 0:00:10]} 50. Kd2 {[%clk 0:00:07]}  Na4 {[%clk 0:00:10]} 51. Nac4 {[%clk 0:00:06]}  Bb5 {[%clk 0:00:07]} 52. Ke1 {[%clk 0:00:05]}  Bxc3+ {[%clk 0:00:04]} 53. bxc3 {[%clk 0:00:05]}  Nxc3 {[%clk 0:00:05]} 54. Kf2 {[%clk 0:00:02]}  Bxc4 {[%clk 0:00:03]} 55. Nxc4 {[%clk 0:00:03]}  Nxd5 {[%clk 0:00:04]} 56. Bg5 {[%clk 0:00:03]}  Nc7 {[%clk 0:00:02]} 57. Kg3 {[%clk 0:00:02]}  Nb5 {[%clk 0:00:03]} 58. Ne3 {[%clk 0:00:02]}  Nd4 {[%clk 0:00:02]} 59. Kxh3 {[%clk 0:00:03]}  c4 {[%clk 0:00:01]} 60. Kg4 {[%clk 0:00:02]}  c3 {[%clk 0:00:02]} 61. Nc4 {[%clk 0:00:02]}  d5 {[%clk 0:00:01]} 62. Nb2 {[%clk 0:00:02]}  e6 {[%clk 0:00:01]} 63. Nd3 {[%clk 0:00:03]}  exf5+ {[%clk 0:00:02]} 64. Kf4 {[%clk 0:00:04]}  c2 {[%clk 0:00:02]} 65. Ke5 {[%clk 0:00:04]}  Nb3 {[%clk 0:00:02]} 66. Kxf5 {[%clk 0:00:03]}  c1=Q {[%clk 0:00:03]} 67. Nxc1 {[%clk 0:00:04]}  Nxc1 {[%clk 0:00:04]} 68. Bxc1 {[%clk 0:00:04]}  d4 {[%clk 0:00:05]} 69. Ke4 {[%clk 0:00:05]}  d3 {[%clk 0:00:06]} 70. Kxd3 {[%clk 0:00:06]} 1/2-1/2


[Site "https://www.chess.com"]

[Event "Titled Tuesday Blitz March 22 Early 2022"]
[White "Sanchez Alvares, Kelvin Antonio"]
[Black "Shuvalov, Evgenij"]
[WhiteFideId "3906680"]
[BlackFideId "4187237"]
[WhiteElo "2193"]
[BlackElo "2151"]
[Result "0-1"]
[Round "06"]
[TimeControl "180+1"]
[Date "2022.03.22"]
[WhiteClock "0:01:18"]
[BlackClock "0:00:54"]

1. d4 {[%clk 0:03:00]}  Nf6 {[%clk 0:02:59]} 2. c4 {[%clk 0:03:00]}  g6 {[%clk 0:02:58]} 3. f3 {[%clk 0:02:59]}  d5 {[%clk 0:02:55]} 4. cxd5 {[%clk 0:02:57]}  Nxd5 {[%clk 0:02:55]} 5. e4 {[%clk 0:02:57]}  Nb6 {[%clk 0:02:55]} 6. Be3 {[%clk 0:02:57]}  Bg7 {[%clk 0:02:54]} 7. Nc3 {[%clk 0:02:57]}  O-O {[%clk 0:02:52]} 8. h4 {[%clk 0:02:57]}  h5 {[%clk 0:02:51]} 9. Qd2 {[%clk 0:02:54]}  Nc6 {[%clk 0:02:49]} 10. O-O-O {[%clk 0:02:54]}  Na5 {[%clk 0:02:46]} 11. Bh6 {[%clk 0:02:43]}  Nac4 {[%clk 0:02:42]} 12. Qf4 {[%clk 0:02:42]}  Qd6 {[%clk 0:02:20]} 13. e5 {[%clk 0:02:33]}  Qb4 {[%clk 0:02:18]} 14. Bxc4 {[%clk 0:02:17]}  Nxc4 {[%clk 0:02:17]} 15. Rd2 {[%clk 0:02:14]}  Nxd2 {[%clk 0:02:11]} 16. Qxd2 {[%clk 0:02:11]}  Bxh6 {[%clk 0:02:01]} 17. Qxh6 {[%clk 0:02:12]}  Qxd4 {[%clk 0:02:01]} 18. Nge2 {[%clk 0:02:11]}  Qxe5 {[%clk 0:02:01]} 19. Ne4 {[%clk 0:02:02]}  Bf5 {[%clk 0:01:54]} 20. N2g3 {[%clk 0:01:57]}  Bxe4 {[%clk 0:01:34]} 21. Nxe4 {[%clk 0:01:56]}  Rfd8 {[%clk 0:01:30]} 22. g4 {[%clk 0:01:55]}  Qg7 {[%clk 0:01:20]} 23. Qf4 {[%clk 0:01:55]}  Rd5 {[%clk 0:01:16]} 24. gxh5 {[%clk 0:01:42]}  Rxh5 {[%clk 0:01:16]} 25. Rg1 {[%clk 0:01:35]}  Qh6 {[%clk 0:01:13]} 26. Ng5 {[%clk 0:01:33]}  Rf8 {[%clk 0:01:08]} 27. Qc4 {[%clk 0:01:25]}  Rxh4 {[%clk 0:01:05]} 28. f4 {[%clk 0:01:25]}  e5 {[%clk 0:01:02]} 29. Kb1 {[%clk 0:01:20]}  Rxf4 {[%clk 0:01:02]} 30. Qxc7 {[%clk 0:01:19]}  Rf5 {[%clk 0:00:58]} 31. Ne4 {[%clk 0:01:18]}  Qe3 {[%clk 0:00:54]} 0-1


[Site "https://www.chess.com"]

[Event "Titled Tuesday Blitz March 22 Early 2022"]
[White "Sargsyan, Anna M."]
[Black "Neiksans, Arturs"]
[WhiteFideId "13308130"]
[BlackFideId "11601388"]
[WhiteElo "2271"]
[BlackElo "2447"]
[Result "0-1"]
[Round "06"]
[TimeControl "180+1"]
[Date "2022.03.22"]
[WhiteClock "0:00:09"]
[BlackClock "0:01:03"]

1. d4 {[%clk 0:02:49]}  f5 {[%clk 0:02:58]} 2. c4 {[%clk 0:02:47]}  Nf6 {[%clk 0:02:58]} 3. Nc3 {[%clk 0:02:47]}  e6 {[%clk 0:02:56]} 4. Bg5 {[%clk 0:02:47]}  Bb4 {[%clk 0:02:56]} 5. Qc2 {[%clk 0:02:46]}  O-O {[%clk 0:02:55]} 6. O-O-O {[%clk 0:02:40]}  Bxc3 {[%clk 0:02:49]} 7. Qxc3 {[%clk 0:02:31]}  Ne4 {[%clk 0:02:48]} 8. Bxd8 {[%clk 0:02:32]}  Nxc3 {[%clk 0:02:48]} 9. bxc3 {[%clk 0:02:31]}  Rxd8 {[%clk 0:02:48]} 10. c5 {[%clk 0:02:26]}  b6 {[%clk 0:02:47]} 11. cxb6 {[%clk 0:02:26]}  axb6 {[%clk 0:02:47]} 12. Kb2 {[%clk 0:02:26]}  Bb7 {[%clk 0:02:46]} 13. e3 {[%clk 0:02:26]}  Nc6 {[%clk 0:02:45]} 14. Nh3 {[%clk 0:02:19]}  Na5 {[%clk 0:02:41]} 15. c4 {[%clk 0:02:19]}  Ra7 {[%clk 0:02:31]} 16. Rg1 {[%clk 0:02:13]}  Rda8 {[%clk 0:02:30]} 17. Be2 {[%clk 0:02:10]}  Nb3 {[%clk 0:02:14]} 18. axb3 {[%clk 0:01:33]}  Ra2+ {[%clk 0:02:13]} 19. Kc3 {[%clk 0:01:27]}  Rxe2 {[%clk 0:02:12]} 20. Rd2 {[%clk 0:00:53]}  Rxd2 {[%clk 0:02:08]} 21. Kxd2 {[%clk 0:00:53]}  Ra2+ {[%clk 0:02:08]} 22. Kc3 {[%clk 0:00:51]}  h6 {[%clk 0:02:03]} 23. g4 {[%clk 0:00:45]}  Bf3 {[%clk 0:01:44]} 24. gxf5 {[%clk 0:00:43]}  exf5 {[%clk 0:01:43]} 25. d5 {[%clk 0:00:39]}  Kf7 {[%clk 0:01:37]} 26. Rg3 {[%clk 0:00:32]}  Bd1 {[%clk 0:01:31]} 27. b4 {[%clk 0:00:27]}  g5 {[%clk 0:01:28]} 28. Rg1 {[%clk 0:00:13]}  Bg4 {[%clk 0:01:27]} 29. Rg3 {[%clk 0:00:13]}  Bxh3 {[%clk 0:01:19]} 30. Rxh3 {[%clk 0:00:14]}  Kg6 {[%clk 0:01:18]} 31. f3 {[%clk 0:00:13]}  h5 {[%clk 0:01:14]} 32. Kd4 {[%clk 0:00:12]}  g4 {[%clk 0:01:13]} 33. fxg4 {[%clk 0:00:11]}  fxg4 {[%clk 0:01:13]} 34. Rg3 {[%clk 0:00:11]}  Rxh2 {[%clk 0:01:13]} 35. c5 {[%clk 0:00:10]}  bxc5+ {[%clk 0:01:13]} 36. bxc5 {[%clk 0:00:11]}  Kg5 {[%clk 0:01:12]} 37. Ke5 {[%clk 0:00:10]}  h4 {[%clk 0:01:10]} 38. Rg1 {[%clk 0:00:10]}  Re2 {[%clk 0:01:10]} 39. e4 {[%clk 0:00:10]}  h3 {[%clk 0:01:10]} 40. Rf1 {[%clk 0:00:10]}  g3 {[%clk 0:01:06]} 41. Rf8 {[%clk 0:00:09]}  h2 {[%clk 0:01:04]} 42. Rg8+ {[%clk 0:00:10]}  Kh4 {[%clk 0:01:04]} 43. Kf4 {[%clk 0:00:09]}  Rf2+ {[%clk 0:01:03]} 0-1


[Site "https://www.chess.com"]

[Event "Titled Tuesday Blitz March 22 Early 2022"]
[White "Shohat, Yotam"]
[Black "Borodavkin, Anatoly"]
[WhiteFideId "2813955"]
[BlackFideId "14150662"]
[WhiteElo "2119"]
[BlackElo "1845"]
[Result "1-0"]
[Round "06"]
[TimeControl "180+1"]
[Date "2022.03.22"]
[WhiteClock "0:00:03"]
[BlackClock "0:00:01"]

1. e4 {[%clk 0:01:43]}  e5 {[%clk 0:02:58]} 2. f4 {[%clk 0:01:42]}  exf4 {[%clk 0:02:58]} 3. Bc4 {[%clk 0:01:41]}  Qh4+ {[%clk 0:02:56]} 4. Kf1 {[%clk 0:01:40]}  Nc6 {[%clk 0:02:46]} 5. d4 {[%clk 0:01:23]}  g5 {[%clk 0:02:33]} 6. Nf3 {[%clk 0:01:16]}  Qh5 {[%clk 0:02:25]} 7. Nc3 {[%clk 0:01:11]}  Bg7 {[%clk 0:02:07]} 8. Nd5 {[%clk 0:00:55]}  Kd8 {[%clk 0:02:06]} 9. c3 {[%clk 0:00:41]}  d6 {[%clk 0:01:56]} 10. h4 {[%clk 0:00:31]}  Bg4 {[%clk 0:01:51]} 11. Kf2 {[%clk 0:00:24]}  Bxf3 {[%clk 0:01:38]} 12. gxf3 {[%clk 0:00:18]}  gxh4 {[%clk 0:01:33]} 13. Nxf4 {[%clk 0:00:16]}  Qa5 {[%clk 0:01:20]} 14. b4 {[%clk 0:00:16]}  Qb6 {[%clk 0:01:18]} 15. Nd5 {[%clk 0:00:14]}  Bxd4+ {[%clk 0:01:13]} 16. Kf1 {[%clk 0:00:14]}  Bxc3 {[%clk 0:01:03]} 17. Nxb6 {[%clk 0:00:14]}  axb6 {[%clk 0:01:03]} 18. Rb1 {[%clk 0:00:13]}  Nge7 {[%clk 0:01:01]} 19. Bb2 {[%clk 0:00:12]}  Bxb2 {[%clk 0:00:55]} 20. Rxb2 {[%clk 0:00:12]}  Ne5 {[%clk 0:00:56]} 21. Be2 {[%clk 0:00:09]}  N7g6 {[%clk 0:00:53]} 22. Qd2 {[%clk 0:00:07]}  Ra3 {[%clk 0:00:51]} 23. f4 {[%clk 0:00:05]}  Nc6 {[%clk 0:00:41]} 24. Rb3 {[%clk 0:00:03]}  Ra4 {[%clk 0:00:38]} 25. b5 {[%clk 0:00:03]}  Na5 {[%clk 0:00:34]} 26. Re3 {[%clk 0:00:03]}  Nxf4 {[%clk 0:00:28]} 27. Rxh4 {[%clk 0:00:03]}  Ne6 {[%clk 0:00:21]} 28. Bg4 {[%clk 0:00:03]}  Nc4 {[%clk 0:00:20]} 29. Qc3 {[%clk 0:00:02]}  Nxe3+ {[%clk 0:00:19]} 30. Qxe3 {[%clk 0:00:03]}  Rg8 {[%clk 0:00:18]} 31. Bxe6 {[%clk 0:00:03]}  fxe6 {[%clk 0:00:18]} 32. Rxh7 {[%clk 0:00:03]}  Rxa2 {[%clk 0:00:17]} 33. Qh6 {[%clk 0:00:03]}  Rag2 {[%clk 0:00:07]} 34. Qf6+ {[%clk 0:00:02]}  Kc8 {[%clk 0:00:08]} 35. Rh8 {[%clk 0:00:02]}  Rg1+ {[%clk 0:00:05]} 36. Kf2 {[%clk 0:00:03]}  Rg2+ {[%clk 0:00:06]} 37. Kf3 {[%clk 0:00:03]}  Rg3+ {[%clk 0:00:05]} 38. Kf2 {[%clk 0:00:04]}  Rg2+ {[%clk 0:00:05]} 39. Ke3 {[%clk 0:00:05]}  Rg3+ {[%clk 0:00:05]} 40. Kd4 {[%clk 0:00:03]}  Rxh8 {[%clk 0:00:03]} 41. Qxh8+ {[%clk 0:00:03]}  Kd7 {[%clk 0:00:03]} 42. Qh7+ {[%clk 0:00:03]}  Kc8 {[%clk 0:00:03]} 43. Qe7 {[%clk 0:00:03]}  Rg6 {[%clk 0:00:01]} 44. Qe8# {[%clk 0:00:03]} 1-0


[Site "https://www.chess.com"]

[Event "Titled Tuesday Blitz March 22 Early 2022"]
[White "Shuvalova, Polina"]
[Black "Aravindh, Chithambaram VR."]
[WhiteFideId "24171760"]
[BlackFideId "5072786"]
[WhiteElo "2355"]
[BlackElo "2561"]
[Result "0-1"]
[Round "06"]
[TimeControl "180+1"]
[Date "2022.03.22"]
[WhiteClock "0:00:02"]
[BlackClock "0:00:40"]

1. d4 {[%clk 0:03:00]}  g6 {[%clk 0:03:00]} 2. c4 {[%clk 0:03:00]}  Bg7 {[%clk 0:03:01]} 3. Nf3 {[%clk 0:03:00]}  d6 {[%clk 0:03:01]} 4. Nc3 {[%clk 0:03:01]}  Nf6 {[%clk 0:03:00]} 5. Bg5 {[%clk 0:03:01]}  O-O {[%clk 0:03:00]} 6. e3 {[%clk 0:03:01]}  Nbd7 {[%clk 0:03:01]} 7. Be2 {[%clk 0:02:58]}  b6 {[%clk 0:03:01]} 8. Qc2 {[%clk 0:02:54]}  Bb7 {[%clk 0:03:02]} 9. Rd1 {[%clk 0:02:53]}  a6 {[%clk 0:03:00]} 10. O-O {[%clk 0:02:50]}  Qe8 {[%clk 0:03:00]} 11. Rfe1 {[%clk 0:02:46]}  h6 {[%clk 0:03:00]} 12. Bh4 {[%clk 0:02:45]}  g5 {[%clk 0:03:00]} 13. Bg3 {[%clk 0:02:45]}  e6 {[%clk 0:03:00]} 14. a4 {[%clk 0:02:39]}  Qe7 {[%clk 0:02:45]} 15. a5 {[%clk 0:02:37]}  bxa5 {[%clk 0:02:46]} 16. Nd2 {[%clk 0:02:26]}  c5 {[%clk 0:02:28]} 17. dxc5 {[%clk 0:02:14]}  Nxc5 {[%clk 0:02:28]} 18. Nb3 {[%clk 0:02:13]}  Rfd8 {[%clk 0:02:25]} 19. Nxa5 {[%clk 0:02:13]}  Rac8 {[%clk 0:02:12]} 20. Nxb7 {[%clk 0:02:06]}  Nxb7 {[%clk 0:02:06]} 21. h4 {[%clk 0:02:01]}  Nd7 {[%clk 0:01:47]} 22. hxg5 {[%clk 0:01:59]}  hxg5 {[%clk 0:01:47]} 23. Qb1 {[%clk 0:01:37]}  Ne5 {[%clk 0:01:47]} 24. Qa2 {[%clk 0:01:28]}  a5 {[%clk 0:01:32]} 25. Nb5 {[%clk 0:01:26]}  Nc5 {[%clk 0:01:13]} 26. Qxa5 {[%clk 0:01:09]}  Nc6 {[%clk 0:01:13]} 27. Qb6 {[%clk 0:00:36]}  Na4 {[%clk 0:01:14]} 28. Qa6 {[%clk 0:00:25]}  Nc5 {[%clk 0:01:14]} 29. Qb6 {[%clk 0:00:24]}  Ne4 {[%clk 0:01:14]} 30. Bh2 {[%clk 0:00:15]}  Ne5 {[%clk 0:01:05]} 31. b3 {[%clk 0:00:13]}  g4 {[%clk 0:01:01]} 32. Bxe5 {[%clk 0:00:07]}  Bxe5 {[%clk 0:01:00]} 33. Bxg4 {[%clk 0:00:08]}  Qh4 {[%clk 0:00:59]} 34. f4 {[%clk 0:00:03]}  Qf2+ {[%clk 0:00:54]} 35. Kh2 {[%clk 0:00:03]}  Bxf4+ {[%clk 0:00:54]} 36. exf4 {[%clk 0:00:03]}  Qxb6 {[%clk 0:00:53]} 37. Rxe4 {[%clk 0:00:02]}  f5 {[%clk 0:00:52]} 38. Rxe6 {[%clk 0:00:02]}  fxg4 {[%clk 0:00:52]} 39. Rd5 {[%clk 0:00:02]}  Rd7 {[%clk 0:00:48]} 40. Rg5+ {[%clk 0:00:02]}  Rg7 {[%clk 0:00:46]} 41. Rxd6 {[%clk 0:00:02]}  Qf2 {[%clk 0:00:41]} 42. Rf5 {[%clk 0:00:02]}  Rh7+ {[%clk 0:00:40]} 0-1


[Site "https://www.chess.com"]